fUST/lending_fUST_20240124
["ID","MTS","AMOUNT","RATE_DAILY","PERIOD"]
[312598567,1706051451035,-500.0,0.00041643,31]
[312598568,1706051451046,-500.0,0.00041643,31]
[312598569,1706051451055,-780.17,0.00041643,31]
[312598570,1706051451065,-500.0,0.00041643,31]
[312598571,1706051451075,-274.32471393,0.00041643,31]
[312598572,1706051451085,-500.0,0.00041643,31]
[312598573,1706051451095,-603.05636959,0.00041643,31]
[312598574,1706051451104,-518.7,0.00041643,20]
[312598575,1706051451113,-500.0,0.00041643,31]
[312598576,1706051451122,-500.0,0.00041643,31]
[312598577,1706051451132,-1059.16,0.00041643,31]
[312598578,1706051451141,-744.97,0.00041643,31]
[312598579,1706051451151,-500.0,0.00041643,31]
[312598580,1706051451161,-968.06,0.00041643,31]
[312598581,1706051451170,-500.0,0.00041643,31]
[312598582,1706051451180,-500.0,0.00041643,31]
[312598583,1706051451190,-833.17,0.00041643,31]
[312598584,1706051451200,-500.0,0.00041643,31]
[312598585,1706051451209,-500.0,0.00041643,31]
[312598586,1706051451219,-500.0,0.00041643,31]
[312598587,1706051451228,-693.38,0.00041643,31]
[312598588,1706051451238,-500.0,0.00041643,31]
[312598589,1706051451248,-500.0,0.00041643,31]
[312598590,1706051451258,-500.0,0.00041643,31]
[312598591,1706051451267,-500.0,0.00041643,31]
[312598592,1706051451277,-500.0,0.00041643,31]
[312598593,1706051451286,-500.0,0.00041643,31]
[312598594,1706051451296,-500.0,0.00041643,31]
[312598595,1706051451305,-500.0,0.00041643,31]
[312598596,1706051451315,-500.0,0.00041643,31]
[312598597,1706051451325,-500.0,0.00041643,31]
[312598598,1706051451338,-855.0,0.00041643,31]
[312598599,1706051451347,-500.0,0.00041643,31]
[312598600,1706051451356,-539.82,0.00041643,31]
[312598601,1706051451366,-500.0,0.00041643,31]
[312598602,1706051451376,-1208.64,0.00041643,31]
[312598603,1706051451386,-500.0,0.00041643,31]
[312598604,1706051451395,-150.74547761,0.00041643,31]
[312598605,1706051451406,-500.0,0.00041643,31]
[312598606,1706051451415,-500.0,0.00041643,31]
[312598607,1706051451424,-500.0,0.00041643,31]
[312598608,1706051451433,-500.0,0.00041643,31]
[312598609,1706051451442,-674.15,0.00041643,31]
[312598610,1706051451451,-500.0,0.00041643,31]
[312598611,1706051451461,-500.0,0.00041643,31]
[312598612,1706051451470,-2660.91,0.00041643,31]
[312598613,1706051451480,-3871.15,0.00041643,31]
[312598614,1706051451489,-589.73,0.00041643,31]
[312598615,1706051451498,-1211.66,0.00041643,31]
[312598616,1706051451508,-500.0,0.00041643,31]
[312598617,1706051451518,-2997.82,0.00041643,31]
[312598618,1706051451527,-500.0,0.00041643,31]
[312598619,1706051451537,-1427.91,0.00041643,31]
[312598620,1706051451548,-2684.03,0.00041643,31]
[312598621,1706051451558,-565.26,0.00041643,31]
[312598622,1706051451568,-178.51955219,0.00041643,31]
[312598623,1706051451578,-3359.22,0.00041643,31]
[312598624,1706051451587,-2572.33,0.00041643,31]
[312598625,1706051451597,-500.0,0.00041643,31]
[312598626,1706051451606,-1656.89,0.00041643,31]
[312598627,1706051451616,-500.0,0.00041643,31]
[312598628,1706051451626,-500.0,0.00041643,31]
[312598629,1706051451636,-500.0,0.00041643,31]
[312598630,1706051451645,-1000.0,0.00041643,2]
[312598631,1706051451655,-2257.62,0.00041643,31]
[312598632,1706051451664,-1558.13,0.00041643,31]
[312598633,1706051451674,-1217.06,0.00041643,31]
[312598634,1706051451684,-500.0,0.00041643,31]
[312598635,1706051451694,-500.0,0.00041643,31]
[312598636,1706051451704,-500.0,0.00041643,31]
[312598637,1706051451714,-500.0,0.00041643,31]
[312598638,1706051451725,-793.97,0.00041643,31]
[312598639,1706051451734,-1342.83,0.00041643,2]
[312598640,1706051451744,-9724.15,0.00041643,31]
[312598641,1706051451754,-614.77,0.00041643,31]
[312598642,1706051451764,-683.06,0.00041643,31]
[312598643,1706051451774,-546.29,0.00041643,31]
[312598644,1706051451784,-500.0,0.00041643,31]
[312598645,1706051451795,-500.0,0.00041643,31]
[312598646,1706051451804,-23459.5,0.00041643,14]
[312598647,1706051451814,-1476.18,0.00041643,31]
[312598648,1706051451824,-823.21,0.00041643,31]
[312598649,1706051451833,-500.0,0.00041643,31]
[312598650,1706051451843,-500.0,0.00041643,31]
[312598651,1706051451853,-500.0,0.00041643,31]
[312598652,1706051451862,-500.0,0.00041643,31]
[312598653,1706051451872,-566.76,0.00041643,31]
[312598654,1706051451882,-740.87,0.00041643,31]
[312598655,1706051451892,-677.26,0.00041643,31]
[312598656,1706051451902,-558.82,0.00041643,31]
[312598657,1706051451912,-534.15460334,0.00041643,31]
[312598658,1706051451922,-500.0,0.00041643,31]
[312598659,1706051451931,-1234.8,0.00041643,31]
[312598660,1706051451940,-1578.38,0.00041643,31]
[312598661,1706051451950,-500.0,0.00041643,31]
[312598662,1706051451960,-500.0,0.00041643,31]
[312598663,1706051451970,-500.0,0.00041643,31]
[312598664,1706051451979,-565.35,0.00041643,31]
[312598665,1706051451989,-500.0,0.00041643,31]
[312598666,1706051451998,-500.0,0.00041643,31]
[312598667,1706051452008,-533.95,0.00041643,31]
[312598668,1706051452018,-3158.37,0.00041643,31]
[312598669,1706051452027,-796.5,0.00041643,31]
[312598670,1706051452037,-500.0,0.00041643,31]
[312598671,1706051452049,-500.0,0.00041643,31]
[312598672,1706051452058,-500.0,0.00041643,31]
[312598673,1706051452068,-505.12637675,0.00041643,31]
[312598674,1706051452079,-1239.02,0.00041643,31]
[312598675,1706051452088,-3533.94,0.00041643,31]
[312598676,1706051452098,-500.0,0.00041643,31]
[312598677,1706051452108,-500.0,0.00041643,31]
[312598678,1706051452118,-242.77569188,0.00041643,31]
[312598679,1706051452128,-500.0,0.00041643,31]
[312598680,1706051452138,-3303.17,0.00041643,31]
[312598681,1706051452147,-891.16,0.00041643,31]
[312598682,1706051452156,-626.231248,0.00041643,7]
[312598683,1706051452166,-626.231248,0.00041643,7]
[312598684,1706051452175,-626.231248,0.00041643,7]
[312598685,1706051452184,-626.231248,0.00041643,7]
[312598686,1706051452193,-2400.0,0.00041643,7]
[312598687,1706051452202,-2400.0,0.00041643,7]
[312598688,1706051452212,-2400.0,0.00041643,7]
[312598689,1706051452221,-2400.0,0.00041643,7]
[312598690,1706051452230,-157.34687427,0.00041679,30]
[312598691,1706051452239,-163.45847843,0.00041916,30]
[312598692,1706051452248,-410.83858145,0.00041916,30]
[312598693,1706051452258,-321.63259873,0.00041916,4]
[312598694,1706051452267,-626.231248,0.00041917,7]
[312598695,1706051452276,-626.231248,0.00041917,7]
[312598696,1706051452286,-626.231248,0.00041917,7]
[312598697,1706051452297,-626.231248,0.00041917,7]
[312598698,1706051452306,-2400.0,0.00041917,7]
[312598699,1706051452315,-2400.0,0.00041917,7]
[312598700,1706051452324,-2400.0,0.00041917,7]
[312598701,1706051452336,-2400.0,0.00041917,7]
[312598702,1706051452345,-154.86062544,0.00041917,4]
[312598703,1706051452354,-500.0,0.00041917,31]
[312598704,1706051452363,-500.0,0.00041917,7]
[312598705,1706051452372,-671.66,0.00041917,31]
[312598706,1706051452382,-1582.92,0.00041917,31]
[312598707,1706051452391,-935.77,0.00041917,31]
[312598708,1706051452401,-500.0,0.00041917,31]
[312598709,1706051452411,-1068.6,0.00041917,31]
[312598710,1706051452500,-639.84,0.00041917,31]
[312598711,1706051452520,-500.0,0.00041917,31]
[312598712,1706051452529,-908.99,0.00041917,31]
[312598713,1706051452538,-788.73,0.00041917,31]
[312598714,1706051452550,-500.0,0.00041917,31]
[312598715,1706051452559,-500.0,0.00041917,31]
[312598716,1706051452569,-500.0,0.00041917,31]
[312598717,1706051452578,-500.0,0.00041917,7]
[312598718,1706051452587,-579.94,0.00041917,31]
[312598719,1706051452597,-500.0,0.00041917,31]
[312598720,1706051452606,-664.89,0.00041917,31]
[312598721,1706051452615,-500.0,0.00041917,31]
[312598722,1706051452624,-500.0,0.00041917,31]
[312598723,1706051452633,-1348.74,0.00041917,31]
[312598724,1706051452642,-1087.74838696,0.00041917,2]
[312598725,1706051452651,-500.0,0.00041917,31]
[312598726,1706051452661,-597.6717405,0.00041917,2]
[312598727,1706051452671,-500.0,0.00041917,31]
[312598728,1706051452680,-500.0,0.00041917,7]
[312598729,1706051452689,-500.0,0.00041917,31]
[312598730,1706051452699,-500.0,0.00041917,2]
[312598731,1706051452708,-620.47,0.00041917,31]
[312598732,1706051452717,-329.94710877,0.00041917,31]
[312598733,1706051452727,-500.0,0.00041917,31]
[312598734,1706051452736,-1017.58,0.00041917,31]
[312598735,1706051452746,-500.0,0.00041917,31]
[312598736,1706051452755,-500.0,0.00041917,31]
[312598737,1706051452764,-500.0,0.00041917,31]
[312598738,1706051452773,-500.0,0.00041917,31]
[312598739,1706051452782,-752.11,0.00041917,31]
[312598740,1706051452793,-566.18,0.00041917,31]
[312598741,1706051452802,-500.0,0.00041917,31]
[312598742,1706051452812,-500.0,0.00041917,31]
[312598743,1706051452822,-780.17,0.00041917,31]
[312598744,1706051452831,-500.0,0.00041917,31]
[312598745,1706051452840,-500.0,0.00041917,31]
[312598746,1706051452849,-518.7,0.00041917,20]
[312598747,1706051452858,-500.0,0.00041917,31]
[312598748,1706051452867,-500.0,0.00041917,31]
[312598749,1706051452876,-1059.16,0.00041917,31]
[312598750,1706051452885,-744.97,0.00041917,31]
[312598751,1706051452894,-500.0,0.00041917,31]
[312598752,1706051452903,-968.06,0.00041917,31]
[312598753,1706051452911,-500.0,0.00041917,31]
[312598754,1706051452920,-500.0,0.00041917,31]
[312598755,1706051452929,-833.17,0.00041917,31]
[312598756,1706051452938,-500.0,0.00041917,31]
[312598757,1706051452947,-500.0,0.00041917,31]
[312598758,1706051452956,-500.0,0.00041917,31]
[312598759,1706051452965,-693.38,0.00041917,31]
[312598760,1706051452974,-500.0,0.00041917,31]
[312598761,1706051452983,-500.0,0.00041917,31]
[312598762,1706051452992,-500.0,0.00041917,31]
[312598763,1706051453001,-500.0,0.00041917,31]
[312598764,1706051453010,-500.0,0.00041917,31]
[312598765,1706051453019,-500.0,0.00041917,31]
[312598766,1706051453028,-500.0,0.00041917,31]
[312598767,1706051453037,-500.0,0.00041917,31]
[312598768,1706051453047,-500.0,0.00041917,31]
[312598769,1706051453056,-500.0,0.00041917,31]
[312598770,1706051453065,-855.0,0.00041917,31]
[312598771,1706051453074,-500.0,0.00041917,31]
[312598772,1706051453084,-539.82,0.00041917,31]
[312598773,1706051453093,-538.00255616,0.00041917,31]
[312598774,1706051453102,-1208.64,0.00041917,31]
[312598775,1706051453111,-500.0,0.00041917,31]
[312598776,1706051453120,-500.0,0.00041917,31]
[312598777,1706051453129,-500.0,0.00041917,31]
[312598778,1706051453138,-500.0,0.00041917,31]
[312598779,1706051453147,-500.0,0.00041917,31]
[312598780,1706051453155,-674.15,0.00041917,31]
[312598781,1706051453164,-500.0,0.00041917,31]
[312598782,1706051453173,-500.0,0.00041917,31]
[312598783,1706051453182,-2660.91,0.00041917,31]
[312598784,1706051453192,-3871.15,0.00041917,31]
[312598785,1706051453201,-589.73,0.00041917,31]
[312598786,1706051453210,-1211.66,0.00041917,31]
[312598787,1706051453219,-500.0,0.00041917,31]
[312598788,1706051453229,-2997.82,0.00041917,31]
[312598789,1706051453238,-500.0,0.00041917,31]
[312598790,1706051453247,-1427.91,0.00041917,31]
[312598791,1706051453256,-2684.03,0.00041917,31]
[312598792,1706051453265,-565.26,0.00041917,31]
[312598793,1706051453275,-3359.22,0.00041917,31]
[312598794,1706051453284,-2572.33,0.00041917,31]
[312598795,1706051453293,-500.0,0.00041917,31]
[312598796,1706051453302,-1656.89,0.00041917,31]
[312598797,1706051453311,-238.35227276,0.00041917,31]
[312598798,1706051453321,-500.0,0.00041917,31]
[312598799,1706051453330,-1000.0,0.00041917,2]
[312598800,1706051453339,-500.0,0.00041917,31]
[312598801,1706051453351,-2257.62,0.00041917,31]
[312598802,1706051453360,-1558.13,0.00041917,31]
[312598803,1706051453369,-1217.06,0.00041917,31]
[312598804,1706051453378,-500.0,0.00041917,31]
[312598805,1706051453387,-500.0,0.00041917,31]
[312598806,1706051453396,-500.0,0.00041917,31]
[312598807,1706051453405,-793.97,0.00041917,31]
[312598808,1706051453415,-1342.83,0.00041917,2]
[312598809,1706051453423,-9724.15,0.00041917,31]
[312598810,1706051453433,-614.77,0.00041917,31]
[312598811,1706051453442,-683.06,0.00041917,31]
[312598812,1706051453451,-546.29,0.00041917,31]
[312598813,1706051453460,-500.0,0.00041917,31]
[312598814,1706051453470,-500.0,0.00041917,31]
[312598815,1706051453479,-23459.5,0.00041917,14]
[312598816,1706051453488,-1476.18,0.00041917,31]
[312598817,1706051453498,-823.21,0.00041917,31]
[312598818,1706051453508,-500.0,0.00041917,31]
[312598819,1706051453516,-500.0,0.00041917,31]
[312598820,1706051453526,-500.0,0.00041917,31]
[312598821,1706051453537,-500.0,0.00041917,31]
[312598822,1706051453547,-566.76,0.00041917,31]
[312598823,1706051453556,-740.87,0.00041917,31]
[312598824,1706051453565,-677.26,0.00041917,31]
[312598825,1706051453574,-558.82,0.00041917,31]
[312598826,1706051453583,-500.0,0.00041917,31]
[312598827,1706051453592,-1234.8,0.00041917,31]
[312598828,1706051453601,-1578.38,0.00041917,31]
[312598829,1706051453611,-500.0,0.00041917,31]
[312598830,1706051453620,-500.0,0.00041917,31]
[312598831,1706051453630,-500.0,0.00041917,31]
[312598832,1706051453639,-565.35,0.00041917,31]
[312598833,1706051453649,-500.0,0.00041917,31]
[312598834,1706051453658,-500.0,0.00041917,31]
[312598835,1706051453668,-533.95,0.00041917,31]
[312598836,1706051453677,-3158.37,0.00041917,31]
[312598837,1706051453686,-796.5,0.00041917,31]
[312598838,1706051453696,-500.0,0.00041917,31]
[312598839,1706051453705,-500.0,0.00041917,31]
[312598840,1706051453714,-500.0,0.00041917,31]
[312598841,1706051453723,-1239.02,0.00041917,31]
[312598842,1706051453733,-3533.94,0.00041917,31]
[312598843,1706051453742,-500.0,0.00041917,31]
[312598844,1706051453751,-233.77120839,0.00041917,31]
[312598845,1706051453760,-500.0,0.00041917,31]
[312598846,1706051453769,-3303.17,0.00041917,31]
[312598847,1706051453779,-187.40332217,0.00042,2]
[312598848,1706051453788,-1999.49323234,0.00042,2]
[312598849,1706051453798,-153.03404248,0.00042018,30]
[312598850,1706051453807,-174.61760215,0.0004204,30]
[312598851,1706051453816,-153.03404248,0.00042059,30]
[312598852,1706051453825,-153.03404248,0.00042066,30]
[312598853,1706051453834,-153.03404248,0.00042072,30]
[312598854,1706051453843,-151.45185766,0.00042095,30]
[312598855,1706051453852,-626.231248,0.00042191,7]
[312598856,1706051453861,-626.231248,0.00042191,7]
[312598857,1706051453870,-626.231248,0.00042191,7]
[312598858,1706051453879,-626.231248,0.00042191,7]
[312598859,1706051453888,-2400.0,0.00042191,7]
[312598860,1706051453896,-2400.0,0.00042191,7]
[312598861,1706051453905,-2400.0,0.00042191,7]
[312598862,1706051453914,-2400.0,0.00042191,7]
[312598863,1706051453924,-500.0,0.00042191,31]
[312598864,1706051453932,-500.0,0.00042191,7]
[312598865,1706051453941,-671.66,0.00042191,31]
[312598866,1706051453950,-1582.92,0.00042191,31]
[312598867,1706051453959,-935.77,0.00042191,31]
[312598868,1706051453968,-500.0,0.00042191,31]
[312598869,1706051453978,-1068.6,0.00042191,31]
[312598870,1706051453987,-639.84,0.00042191,31]
[312598871,1706051453995,-622.48177081,0.00042191,31]
[312598872,1706051454005,-908.99,0.00042191,31]
[312598873,1706051454014,-788.73,0.00042191,31]
[312598874,1706051454023,-500.0,0.00042191,31]
[312598875,1706051454032,-500.0,0.00042191,31]
[312598876,1706051454042,-500.0,0.00042191,31]
[312598877,1706051454052,-500.0,0.00042191,7]
[312598878,1706051454061,-579.94,0.00042191,31]
[312598879,1706051454070,-500.0,0.00042191,31]
[312598880,1706051454079,-664.89,0.00042191,31]
[312598881,1706051454088,-500.0,0.00042191,31]
[312598882,1706051454096,-500.0,0.00042191,31]
[312598883,1706051454105,-1348.74,0.00042191,31]
[312598884,1706051454114,-500.0,0.00042191,31]
[312598885,1706051454123,-500.0,0.00042191,31]
[312598886,1706051454132,-500.0,0.00042191,7]
[312598887,1706051454141,-500.0,0.00042191,31]
[312598888,1706051454150,-500.0,0.00042191,2]
[312598889,1706051454159,-620.47,0.00042191,31]
[312598890,1706051454168,-500.0,0.00042191,31]
[312598891,1706051454177,-1017.58,0.00042191,31]
[312598892,1706051454186,-500.0,0.00042191,31]
[312598893,1706051454195,-500.0,0.00042191,31]
[312598894,1706051454205,-500.0,0.00042191,31]
[312598895,1706051454214,-500.0,0.00042191,31]
[312598896,1706051454223,-752.11,0.00042191,31]
[312598897,1706051454232,-566.18,0.00042191,31]
[312598898,1706051454241,-500.0,0.00042191,31]
[312598899,1706051454250,-500.0,0.00042191,31]
[312598900,1706051454260,-780.17,0.00042191,31]
[312598901,1706051454268,-461.33961782,0.00042191,31]
[312598902,1706051454277,-500.0,0.00042191,31]
[312598903,1706051454286,-518.7,0.00042191,20]
[312598904,1706051454296,-500.0,0.00042191,31]
[312598905,1706051454305,-387.94426896,0.00042191,31]
[312598906,1706051454314,-1059.16,0.00042191,31]
[312598907,1706051454324,-744.97,0.00042191,31]
[312598908,1706051454337,-500.0,0.00042191,31]
[312598909,1706051454346,-968.06,0.00042191,31]
[312598910,1706051454362,-500.0,0.00042191,31]
[312598911,1706051454375,-500.0,0.00042191,31]
[312598912,1706051454384,-833.17,0.00042191,31]
[312598913,1706051454394,-500.0,0.00042191,31]
[312598914,1706051454404,-500.0,0.00042191,31]
[312598915,1706051454414,-500.0,0.00042191,31]
[312598916,1706051454423,-693.38,0.00042191,31]
[312598917,1706051454432,-383.15615098,0.00042191,31]
[312598918,1706051454441,-500.0,0.00042191,31]
[312598919,1706051454451,-500.0,0.00042191,31]
[312598920,1706051454461,-500.0,0.00042191,31]
[312598921,1706051454470,-500.0,0.00042191,31]
[312598922,1706051454479,-500.0,0.00042191,31]
[312598923,1706051454489,-500.0,0.00042191,31]
[312598924,1706051454499,-500.0,0.00042191,31]
[312598925,1706051454509,-500.0,0.00042191,31]
[312598926,1706051454518,-510.5245075,0.00042191,31]
[312598927,1706051454529,-855.0,0.00042191,31]
[312598928,1706051454539,-500.0,0.00042191,31]
[312598929,1706051454549,-539.82,0.00042191,31]
[312598930,1706051454559,-1208.64,0.00042191,31]
[312598931,1706051454568,-500.0,0.00042191,31]
[312598932,1706051454578,-500.0,0.00042191,31]
[312598933,1706051454587,-500.0,0.00042191,31]
[312598934,1706051454596,-500.0,0.00042191,31]
[312598935,1706051454606,-500.0,0.00042191,31]
[312598936,1706051454615,-674.15,0.00042191,31]
[312598937,1706051454625,-500.0,0.00042191,31]
[312598938,1706051454635,-500.0,0.00042191,31]
[312598939,1706051454644,-2660.91,0.00042191,31]
[312598940,1706051454654,-3871.15,0.00042191,31]
[312598941,1706051454663,-589.73,0.00042191,31]
[312598942,1706051454673,-1211.66,0.00042191,31]
[312598943,1706051454682,-500.0,0.00042191,31]
[312598944,1706051454692,-2997.82,0.00042191,31]
[312598945,1706051454701,-500.0,0.00042191,31]
[312598946,1706051454710,-1427.91,0.00042191,31]
[312598947,1706051454719,-2684.03,0.00042191,31]
[312598948,1706051454854,-565.26,0.00042191,31]
[312598949,1706051454864,-3359.22,0.00042191,31]
[312598950,1706051454874,-2572.33,0.00042191,31]
[312598951,1706051454883,-500.0,0.00042191,31]
[312598952,1706051454893,-1656.89,0.00042191,31]
[312598953,1706051454901,-500.0,0.00042191,31]
[312598954,1706051454912,-1000.0,0.00042191,2]
[312598955,1706051454922,-2257.62,0.00042191,31]
[312598956,1706051454932,-1558.13,0.00042191,31]
[312598957,1706051454942,-1217.06,0.00042191,31]
[312598958,1706051454951,-500.0,0.00042191,31]
[312598959,1706051454961,-500.0,0.00042191,31]
[312598960,1706051454970,-500.0,0.00042191,31]
[312598961,1706051454979,-793.97,0.00042191,31]
[312598962,1706051454988,-1342.83,0.00042191,2]
[312598963,1706051454997,-9724.15,0.00042191,31]
[312598964,1706051455006,-614.77,0.00042191,31]
[312598965,1706051455015,-683.06,0.00042191,31]
[312598966,1706051455024,-546.29,0.00042191,31]
[312598967,1706051455033,-500.0,0.00042191,31]
[312598968,1706051455042,-500.0,0.00042191,31]
[312598969,1706051455052,-23459.5,0.00042191,14]
[312598970,1706051455061,-1476.18,0.00042191,31]
[312598971,1706051455070,-823.21,0.00042191,31]
[312598972,1706051455080,-500.0,0.00042191,31]
[312598973,1706051455090,-500.0,0.00042191,31]
[312598974,1706051455099,-500.0,0.00042191,31]
[312598975,1706051455108,-500.0,0.00042191,31]
[312598976,1706051455117,-566.76,0.00042191,31]
[312598977,1706051455127,-740.87,0.00042191,31]
[312598978,1706051455136,-677.26,0.00042191,31]
[312598979,1706051455145,-558.82,0.00042191,31]
[312598980,1706051455154,-500.0,0.00042191,31]
[312598981,1706051455163,-1234.8,0.00042191,31]
[312598982,1706051455173,-300.36379622,0.00042191,31]
[312598983,1706051455183,-500.0,0.00042191,31]
[312598984,1706051455192,-1578.38,0.00042191,31]
[312598985,1706051455202,-301.23733978,0.00042191,31]
[312598986,1706051455211,-565.35,0.00042191,31]
[312598987,1706051455220,-500.0,0.00042191,31]
[312598988,1706051455229,-500.0,0.00042191,31]
[312598989,1706051455238,-533.95,0.00042191,31]
[312598990,1706051455248,-3158.37,0.00042191,31]
[312598991,1706051455257,-796.5,0.00042191,31]
[312598992,1706051455266,-500.0,0.00042191,31]
[312598993,1706051455275,-500.0,0.00042191,31]
[312598994,1706051455285,-500.0,0.00042191,31]
[312598995,1706051455294,-1239.02,0.00042191,31]
[312598996,1706051455304,-3533.94,0.00042191,31]
[312598997,1706051455313,-500.0,0.00042191,31]
[312598998,1706051455323,-500.0,0.00042191,31]
[312598999,1706051455335,-3303.17,0.00042191,31]
[312599000,1706051455344,-626.231248,0.00042465,7]
[312599001,1706051455353,-626.231248,0.00042465,7]
[312599002,1706051455362,-2400.0,0.00042465,7]
[312599003,1706051455371,-2400.0,0.00042465,7]
[312599004,1706051455380,-2400.0,0.00042465,7]
[312599005,1706051455389,-2400.0,0.00042465,7]
[312599006,1706051455398,-500.0,0.00042465,31]
[312599007,1706051455408,-472.93333054,0.00042465,7]
[312599008,1706051455417,-671.66,0.00042465,31]
[312599009,1706051455426,-1582.92,0.00042465,31]
[312599010,1706051455435,-935.77,0.00042465,31]
[312599011,1706051455444,-500.0,0.00042465,31]
[312599012,1706051455453,-1068.6,0.00042465,31]
[312599013,1706051455462,-639.84,0.00042465,31]
[312599014,1706051455471,-908.99,0.00042465,31]
[312599015,1706051455480,-788.73,0.00042465,31]
[312599016,1706051455490,-500.0,0.00042465,31]
[312599017,1706051455500,-500.0,0.00042465,31]
[312599018,1706051455510,-500.0,0.00042465,31]
[312599019,1706051455519,-500.0,0.00042465,7]
[312599020,1706051455528,-579.94,0.00042465,31]
[312599021,1706051455537,-500.0,0.00042465,31]
[312599022,1706051455546,-664.89,0.00042465,31]
[312599023,1706051455556,-500.0,0.00042465,31]
[312599024,1706051455566,-500.0,0.00042465,31]
[312599025,1706051455575,-1348.74,0.00042465,31]
[312599026,1706051455584,-500.0,0.00042465,31]
[312599027,1706051455593,-500.0,0.00042465,31]
[312599028,1706051455602,-500.0,0.00042465,7]
[312599029,1706051455612,-500.0,0.00042465,31]
[312599030,1706051455621,-500.0,0.00042465,2]
[312599031,1706051455630,-620.47,0.00042465,31]
[312599032,1706051455640,-500.0,0.00042465,31]
[312599033,1706051455649,-1017.58,0.00042465,31]
[312599034,1706051455658,-500.0,0.00042465,31]
[312599035,1706051455667,-500.0,0.00042465,31]
[312599036,1706051455677,-500.0,0.00042465,31]
[312599037,1706051455686,-500.0,0.00042465,31]
[312599038,1706051455696,-752.11,0.00042465,31]
[312599039,1706051455705,-566.18,0.00042465,31]
[312599040,1706051455714,-500.0,0.00042465,31]
[312599041,1706051455723,-500.0,0.00042465,31]
[312599042,1706051455732,-780.17,0.00042465,31]
[312599043,1706051455741,-500.0,0.00042465,31]
[312599044,1706051455750,-518.7,0.00042465,20]
[312599045,1706051455759,-500.0,0.00042465,31]
[312599046,1706051455768,-1059.16,0.00042465,31]
[312599047,1706051455777,-744.97,0.00042465,31]
[312599048,1706051455786,-500.0,0.00042465,31]
[312599049,1706051455795,-968.06,0.00042465,31]
[312599050,1706051455804,-500.0,0.00042465,31]
[312599051,1706051455813,-500.0,0.00042465,31]
[312599052,1706051455823,-833.17,0.00042465,31]
[312599053,1706051455832,-500.0,0.00042465,31]
[312599054,1706051455841,-500.0,0.00042465,31]
[312599055,1706051455851,-500.0,0.00042465,31]
[312599056,1706051455860,-693.38,0.00042465,31]
[312599057,1706051455869,-500.0,0.00042465,31]
[312599058,1706051455878,-500.0,0.00042465,31]
[312599059,1706051455887,-500.0,0.00042465,31]
[312599060,1706051455896,-500.0,0.00042465,31]
[312599061,1706051455905,-500.0,0.00042465,31]
[312599062,1706051455914,-500.0,0.00042465,31]
[312599063,1706051455923,-500.0,0.00042465,31]
[312599064,1706051455932,-500.0,0.00042465,31]
[312599065,1706051455941,-855.0,0.00042465,31]
[312599066,1706051455951,-500.0,0.00042465,31]